bitfinex/quotes_ETHUSD_20220219
["timestamp","ask_amount","ask_price","bid_price","bid_amount"]
[1645283700406,0.92851273,2731.8,2731.3,1.55440685]
[1645283700605,0.92851273,2731.8,2731.2,0.01984231]
[1645283700808,1.86701887,2731.9,2731.3,1.55438555]
[1645283701211,0.95134887,2731.9,2731.3,1.55438555]
[1645283702006,0.00314046,2731.7,2731.3,1.55438555]
[1645283702203,0.00314046,2731.7,2731.4,0.51460144]
[1645283702406,0.00314046,2731.7,2731.5,1.55438555]
[1645283702804,0.00755076,2731.8,2731.5,1.55438555]
[1645283703004,0.95134887,2731.9,2731.5,1.55438555]
[1645283703205,0.00314046,2731.7,2731.5,1.55438555]
[1645283703405,0.00314046,2731.7,2731.4,0.51460144]
[1645283703862,0.00314046,2731.7,2731.5,1.55474128]
[1645283704059,0.00755076,2731.8,2730.8,8.491]
[1645283704260,0.00309542,2731.7,2730.9,1.55474149]
[1645283704461,0.00309542,2731.7,2731.0,3.5]
[1645283704660,0.00309542,2731.7,2731.1,1.55474149]
[1645283704962,0.00309542,2731.7,2731.1,1.55361159]
[1645283705361,0.00755076,2731.8,2731.5,0.65249263]
[1645283705562,0.92851273,2731.9,2731.5,0.65249263]
[1645283706761,0.00309537,2731.8,2731.5,0.65249263]
[1645283707613,0.92851273,2731.9,2731.5,0.65249263]
[1645283708007,0.00298984,2731.8,2731.5,0.65249263]
[1645283708615,0.00298984,2731.8,2731.6,3.5]
[1645283708921,0.1829,2732.2,2731.5,1.25249263]
[1645283708922,0.0152431,2731.7,2731.5,1.25249263]
[1645283709211,0.0152431,2731.7,2731.6,3.5]
[1645283709212,0.63704108,2731.7,2731.6,3.5]
[1645283709611,0.63704108,2731.7,2731.5,1.25249263]
[1645283710415,0.64003244,2731.7,2731.5,1.25249263]
[1645283710614,0.64003244,2731.7,2731.6,3.5]
[1645283710816,0.64003244,2731.7,2731.6,3.8]
[1645283711015,0.00755076,2732.3,2731.6,3.8]
[1645283711016,0.00755076,2732.3,2731.7,0.6427609]
[1645283711258,0.70445296,2732.3,2731.7,0.6427609]
[1645283711465,0.00755076,2732.2,2731.7,0.6427609]
[1645283711859,0.6969022,2732.4,2731.7,0.6427609]
[1645283712060,0.00755076,2732.3,2731.7,0.6427609]
[1645283712460,0.00755076,2732.3,2732.2,0.51889769]
[1645283712666,0.6969022,2732.4,2732.2,0.51889769]
[1645283713263,0.0097059,2732.5,2732.2,0.51889769]
[1645283713463,0.01725666,2732.5,2732.2,1.37409769]
[1645283713661,0.00755076,2732.5,2732.2,1.37409769]
[1645283713863,0.1829,2733.0,2732.2,1.37409769]
[1645283713864,0.6969022,2732.7,2732.2,1.37409769]
[1645283714070,0.00867681,2732.5,2732.2,1.37409769]
[1645283714267,0.62179798,2732.4,2732.2,1.37409769]
[1645283714664,0.62179798,2732.4,2732.2,1.97409769]
[1645283715114,0.62179798,2732.4,2732.2,1.37409769]
[1645283715813,0.62179798,2732.4,2732.2,0.8552]
[1645283718853,0.62179798,2732.4,2732.3,0.04196623]
[1645283719256,0.00316466,2732.5,2732.3,0.04196623]
[1645283719653,0.62179798,2732.4,2732.3,0.04196623]
[1645283725013,0.69955284,2732.4,2732.3,0.04196623]
[1645283728463,0.69955284,2732.4,2732.2,0.6]
[1645283728661,0.62179798,2732.4,2732.2,0.3]
[1645283728861,0.07775595,2732.3,2732.2,0.3]
[1645283729465,0.07775855,2732.3,2731.8,0.3]
[1645283729671,0.08530931,2732.3,2731.8,0.6]
[1645283729868,0.07775855,2732.2,2731.7,1.2427609]
[1645283730312,0.07775855,2732.2,2731.8,1.48208019]
[1645283730512,0.07775855,2732.2,2731.8,0.56683799]
[1645283731115,0.07775855,2732.2,2731.7,0.6427609]
[1645283734454,0.62179798,2732.0,2731.7,0.6427609]
[1645283734654,0.07775855,2731.9,2731.7,0.6427609]
[1645283735253,0.07775855,2731.9,2731.7,0.9427609]
[1645283735653,0.07775855,2731.9,2731.7,0.6427609]
[1645283737832,0.07775855,2731.9,2731.7,0.64123059]
[1645283739434,0.07775855,2731.9,2731.8,1.53892957]
[1645283739733,0.07775855,2731.9,2731.7,0.64123059]
[1645283739734,0.62179798,2731.8,2731.7,0.64123059]
[1645283740139,0.69955653,2731.8,2731.7,0.64123059]
[1645283742966,0.69955653,2731.8,2731.7,0.69093675]
[1645283744766,0.69955653,2731.8,2731.7,2.23239827]
[1645283745225,0.69955653,2731.8,2731.7,2.83239827]
[1645283745823,0.69955653,2731.8,2731.7,2.23239827]
[1645283748526,0.69955653,2731.8,2731.7,2.2163137]
[1645283751360,0.00755076,2732.3,2731.7,2.2163137]
[1645283751558,0.00755076,2732.3,2731.7,0.67485218]
[1645283751760,0.00755076,2732.3,2731.7,0.97485218]
[1645283752061,0.01205005,2732.4,2731.7,0.97485218]
[1645283752259,0.00755076,2732.5,2732.3,0.52962597]
[1645283752512,0.01506253,2732.5,2732.3,0.47666338]
[1645283753406,0.6969022,2732.6,2731.7,0.99077392]
[1645283753609,0.01056181,2732.5,2731.7,0.99077392]
[1645283753808,0.01056181,2732.5,2731.7,1.29077392]
[1645283754214,0.70746401,2732.5,2731.7,0.69077392]
[1645283754407,0.6969022,2732.4,2731.7,0.69077392]
[1645283754608,1.32730033,2732.4,2731.7,0.69077392]
[1645283754811,0.6969022,2732.3,2731.7,0.69077392]
[1645283755008,0.00755076,2732.2,2731.7,0.69077392]
[1645283756110,0.6969022,2732.4,2731.7,0.69077392]
[1645283756371,0.00755076,2732.3,2731.7,0.69077392]
[1645283757457,4.20445296,2732.3,2731.7,0.69077392]
[1645283757656,0.6969022,2732.3,2731.7,0.69077392]
[1645283757859,0.70445296,2732.2,2731.7,0.69077392]
[1645283758057,0.6969022,2732.3,2731.7,0.69077392]
[1645283758363,0.00755076,2732.1,2731.7,0.99077392]
[1645283758559,0.00755076,2732.2,2732.0,0.01650674]
[1645283758757,0.00755076,2732.3,2732.0,0.01650674]
[1645283758956,0.71950872,2732.5,2732.0,0.01650674]
[1645283759157,0.71195796,2732.5,2732.0,0.01650674]
[1645283759357,0.70445296,2732.6,2732.0,0.01650674]
[1645283759557,0.69991361,2732.5,2732.0,0.01650674]
[1645283760007,0.00301141,2732.5,2732.0,0.01650674]
[1645283760208,0.69991361,2732.5,2732.0,0.01650674]
[1645283760607,0.6969022,2732.5,2732.0,0.01650674]
[1645283760807,0.6969022,2732.4,2732.0,0.01650674]
[1645283761010,0.70445296,2732.4,2732.0,0.01650674]
[1645283761206,0.6969022,2732.4,2732.1,0.59879447]
[1645283761410,0.69991352,2732.5,2732.1,0.59879447]
[1645283761608,0.00301132,2732.5,2732.1,0.59879447]
[1645283761808,0.70445296,2732.6,2732.1,0.59879447]
[1645283762009,0.00301136,2732.5,2732.1,0.59879447]
[1645283763009,0.70445296,2732.6,2732.1,0.59879447]
[1645283763208,0.00301136,2732.5,2732.1,0.59879447]
[1645283764159,0.6969022,2732.5,2732.1,0.59879447]
[1645283764557,0.69991358,2732.5,2732.1,0.59879447]
[1645283765460,0.6969022,2732.4,2732.1,0.59879447]
[1645283766863,0.00301133,2732.5,2732.1,0.59879447]
[1645283767809,0.73884761,2732.6,2732.1,0.59879447]
[1645283768008,0.00301137,2732.5,2732.1,0.59879447]
[1645283769013,0.6969022,2732.5,2732.1,0.59879447]
[1645283769212,0.00301137,2732.5,2732.1,0.59879447]
[1645283770213,0.04194541,2732.6,2732.1,0.59879447]
[1645283770413,0.00301137,2732.5,2732.1,0.59879447]
[1645283771364,0.77466048,2732.5,2732.2,1.54571737]
[1645283771561,0.07775828,2732.5,2732.2,1.54571737]
[1645283771768,0.08076965,2732.5,2732.2,1.54571737]
[1645283772161,0.77767185,2732.5,2732.2,1.54571737]
[1645283772560,0.77466048,2732.5,2732.1,0.59879447]
[1645283772762,0.77466048,2732.5,2732.2,1.54586784]
[1645283772960,0.7776719,2732.5,2732.3,1.54585256]
[1645283773160,0.07775828,2732.4,2732.1,0.59879447]
[1645283773362,0.00301142,2732.5,2732.1,0.59879447]
[1645283773363,0.00301142,2732.5,2732.3,0.03253781]
[1645283773560,0.00301142,2732.5,2732.4,1.54549033]
[1645283773767,0.07775337,2732.5,2732.3,0.03253781]
[1645283773962,0.07775337,2732.4,2732.3,0.03253781]
[1645283774364,0.0807648,2732.5,2732.3,1.57856105]
[1645283774563,0.00301143,2732.5,2732.3,0.03253781]
[1645283775110,0.07775511,2732.7,2732.4,1.54610577]
[1645283775309,0.07775511,2732.7,2732.3,0.03253781]
[1645283775712,0.07775511,2732.7,2732.4,1.54611498]
[1645283775911,0.07775511,2732.7,2732.1,0.59879447]
[1645283775912,0.10872149,2732.2,2732.1,0.59879447]
[1645283776112,0.1864766,2732.2,2732.1,2.14600558]
[1645283780766,0.1864766,2732.2,2732.1,2.44600558]
[1645283781272,0.00337729,2732.6,2732.2,6.5]
[1645283781473,0.00337729,2732.6,2732.3,2.92777772]
[1645283781671,0.01350703,2733.1,2732.4,9.829861]
[1645283781870,0.01350703,2733.1,2732.4,10.744841]
[1645283782066,7.52586349,2733.5,2732.4,10.744841]
[1645283782067,6.56085779,2733.5,2732.5,9.21487]
[1645283782270,6.56085779,2733.5,2732.5,10.04187]
[1645283782507,0.04023949,2733.4,2732.5,9.127]
[1645283782709,0.04023949,2733.4,2732.5,10.85518705]
[1645283782909,0.04023949,2733.4,2733.1,0.51989737]
[1645283784017,0.92895591,2733.8,2733.4,8.0]
[1645283784220,1.3933679,2734.3,2733.5,11.5]
[1645283784424,7.59790781,2734.6,2733.5,11.5]
[1645283784425,7.3945679,2734.6,2733.7,8.0]
[1645283784616,0.92875878,2734.5,2733.7,9.0339]
[1645283784815,0.92875878,2734.5,2733.7,9.6339]
[1645283785017,3.1101,2734.6,2734.4,0.57694444]
[1645283785215,0.92875878,2734.7,2734.4,0.57694444]
[1645283785415,0.87875878,2734.8,2734.4,0.57694444]
[1645283785617,7.49,2735.3,2734.4,0.57694444]
[1645283786287,7.49,2735.3,2734.6,0.91426]
[1645283786288,0.0033782,2734.7,2734.6,0.91426]
[1645283787072,1.3933679,2735.5,2734.5,0.9143083]
[1645283787274,0.00264086,2734.8,2734.6,0.51540735]
[1645283788376,0.00264086,2734.8,2734.7,4.4143174]
[1645283788575,0.00264086,2734.8,2734.7,4.7143174]
[1645283788778,0.00264086,2734.8,2734.7,5.0143174]
[1645283789476,3.3461,2735.8,2734.8,0.3]
[1645283789678,3.1634,2735.8,2735.6,0.61135508]
[1645283789877,0.26443984,2735.5,2734.9,1.8283347]
[1645283790115,0.26443984,2735.5,2734.4,3.6571014]
[1645283790313,0.26443984,2735.5,2734.5,0.96519997]
[1645283790510,0.26443984,2735.5,2734.5,0.66519997]
[1645283790710,0.26443984,2735.5,2734.5,0.96519997]
[1645283791011,0.00337996,2735.1,2734.9,0.55314352]
[1645283791816,0.27795763,2735.5,2734.9,0.55314352]
[1645283792011,0.26443984,2735.5,2734.9,0.55314352]
[1645283792212,0.00337996,2735.1,2734.9,0.55314352]
[1645283793012,0.26443984,2735.5,2734.9,0.55314352]
[1645283793613,0.00337996,2735.1,2734.9,0.55314352]
[1645283794261,0.26443984,2735.5,2734.9,0.55314352]
[1645283794476,0.00337996,2735.1,2734.9,0.55314352]
[1645283795463,0.27795763,2735.5,2734.9,0.55314352]
[1645283795464,0.26443984,2735.5,2734.9,0.55314352]
[1645283795662,0.00337996,2735.1,2734.9,0.55314352]
[1645283796666,0.26443984,2735.5,2734.9,0.55314352]
[1645283797071,0.00337996,2735.1,2734.9,0.55314352]
[1645283797919,0.26443984,2735.5,2734.9,0.55314352]
[1645283798119,0.26443984,2735.5,2734.5,0.32089997]
[1645283798120,0.2769185,2735.5,2735.4,0.56575228]
[1645283799119,0.26443984,2735.5,2735.4,0.56575228]
[1645283802563,3.1219,2736.1,2735.5,8.0]
[1645283802763,1.1791,2736.2,2735.4,4.06575228]
[1645283802962,0.00322228,2735.6,2735.4,0.56575228]
[1645283803562,0.00322228,2735.6,2735.5,3.5]
[1645283803766,0.00322228,2735.6,2735.5,4.5514]
[1645283803964,3.2374,2736.6,2735.7,0.00688083]
[1645283804166,1.1476,2736.8,2735.8,0.7097]
[1645283804167,0.0099243,2736.1,2735.8,0.7097]
[1645283804563,0.0099243,2736.1,2735.9,0.60200799]
[1645283804762,0.0099243,2736.1,2735.9,0.90200799]
[1645283805018,1.1476,2736.8,2735.9,2.72964319]
[1645283805211,1.1476,2736.8,2736.1,0.91379]
[1645283805212,0.00994223,2736.5,2736.1,0.91379]
[1645283805715,0.00994223,2736.5,2736.2,1.8275329]
[1645283805920,0.00994223,2736.5,2736.4,0.3]
[1645283806314,9.9131,2737.6,2736.4,0.3]
[1645283806515,0.00248106,2736.6,2736.5,0.53008327]
[1645283806717,0.00248106,2736.6,2736.5,0.83008327]
[1645283807436,9.9131,2737.6,2736.5,4.33008327]
[1645283807718,9.9131,2737.6,2737.5,0.64720996]
[1645283808116,7.49,2737.6,2736.6,1.8270942]
[1645283808870,7.49,2737.6,2736.7,5.00794]
[1645283809067,0.00322626,2737.2,2736.7,7.66682997]
[1645283809263,0.00322626,2737.2,2736.8,0.527]
[1645283809468,0.00322626,2737.2,2736.9,3.5]
[1645283809664,0.00322626,2737.2,2737.0,0.527]
[1645283809868,7.2391,2738.2,2737.1,4.41338]
[1645283810068,0.00961493,2737.6,2737.3,11.16]
[1645283810272,0.00961493,2737.6,2737.4,3.5]
[1645283810472,0.00961493,2737.6,2737.5,0.527]
[1645283810666,0.00961493,2737.6,2737.5,4.027]
[1645283810864,0.00961493,2737.6,2737.5,0.527]
[1645283811066,0.14221493,2738.6,2737.5,4.027]
[1645283811265,7.49,2738.7,2737.5,4.027]
[1645283811266,7.49,2738.7,2738.5,0.70104775]
[1645283811472,8.26,2738.8,2738.5,0.70104775]
[1645283811673,10.2129,2739.2,2738.5,0.70104775]
[1645283811870,10.2129,2739.2,2738.6,3.5]
[1645283811871,7.49,2739.2,2738.6,3.5]
[1645283812068,2.8462,2739.7,2738.7,0.9128959]
[1645283812273,4.46765346,2740.0,2738.8,3.8]
[1645283812274,0.0408884,2740.0,2738.8,3.8]
[1645283812514,0.0408884,2740.0,2738.9,0.91281]
[1645283812713,0.0408884,2740.0,2739.0,0.13819997]
[1645283813113,0.0408884,2740.0,2738.5,0.70104775]
[1645283813114,5.91309,2739.7,2738.5,0.70104775]
[1645283813316,5.91309,2739.7,2737.8,1.329466]
[1645283813317,5.0,2739.5,2737.9,1.97125]
[1645283813516,2.7058503,2739.4,2737.9,1.9309]
[1645283813716,1.0956,2739.4,2737.9,1.9309]
[1645283813914,1.82977969,2739.2,2737.6,3.2111]
[1645283814115,0.1824,2739.1,2737.7,0.9132535]
[1645283814315,0.1824,2739.1,2738.2,0.62646461]
[1645283814316,26.07915238,2739.0,2738.2,0.62646461]
[1645283814714,26.99248238,2739.0,2738.2,0.62646461]
[1645283814914,0.00318982,2738.7,2738.2,0.62646461]
[1645283815914,3.5,2738.9,2738.2,0.62646461]
[1645283816116,0.00318985,2738.6,2738.2,0.62646461]
[1645283817164,3.5,2738.9,2738.2,0.62646461]
[1645283817365,0.00315008,2738.5,2738.2,0.62646461]
[1645283817562,0.00315008,2738.5,2737.5,1.8264701]
[1645283817765,0.00315008,2738.5,2737.3,0.0416188]
[1645283817766,0.527,2738.4,2737.3,0.0416188]
[1645283817965,3.39012481,2738.3,2737.3,0.0416188]
[1645283818169,0.527,2738.2,2737.3,0.0416188]
[1645283818464,0.91374,2738.1,2737.3,0.0416188]
[1645283818662,0.91374,2738.1,2737.5,0.65350971]
[1645283818663,0.00304062,2737.9,2737.5,0.65350971]
[1645283818861,0.91674062,2737.9,2737.5,0.65350971]
[1645283819061,0.91674062,2737.9,2736.6,3.6826]
[1645283819264,0.91674062,2737.9,2736.6,0.1826]
[1645283819265,0.86674062,2737.9,2736.6,0.1826]
[1645283819464,0.86674062,2737.9,2736.5,0.1826]
[1645283819661,0.86674062,2737.9,2736.4,3.0411]
[1645283819864,1.04934062,2737.9,2736.4,3.6826]
[1645283820118,0.50296671,2737.7,2736.9,0.51540398]
[1645283820318,0.50296671,2737.7,2736.5,0.91371]
[1645283820920,0.50296671,2737.7,2736.5,1.82742]
[1645283821118,0.50296671,2737.7,2736.6,0.00254355]
[1645283821320,0.50296671,2737.7,2736.9,0.56881343]
[1645283822522,0.1826,2737.9,2736.9,0.56881343]
[1645283823522,1.09634,2737.9,2736.9,0.56881343]
[1645283823770,1.80826896,2737.9,2736.9,0.56881343]
[1645283824762,0.1826,2737.9,2736.9,1.48245623]
[1645283824965,0.1826,2737.9,2736.9,1.78245623]
[1645283825165,0.52938564,2738.0,2736.9,0.56881343]
[1645283825166,0.71198564,2738.0,2736.9,0.56881343]
[1645283825365,0.00238564,2738.0,2736.9,0.86881343]
[1645283825564,4.2096,2738.4,2736.9,1.16881343]
[1645283825764,4.2096,2738.4,2737.1,1.8270627]
[1645283825969,0.00314836,2738.0,2737.1,1.8270627]
[1645283826267,0.00314836,2738.0,2737.8,0.66481547]
[1645283826465,0.00314836,2738.0,2737.1,1.82699]
[1645283826865,0.1826,2738.3,2737.1,1.82699]
[1645283827071,0.1826,2738.3,2737.1,0.9135]
[1645283827072,0.00314845,2738.0,2737.1,0.9135]
[1645283827366,0.45835101,2738.0,2737.4,0.55440332]
[1645283828019,0.45520256,2738.0,2737.4,0.55440332]
[1645283828218,0.45835142,2738.0,2737.4,0.55440332]
[1645283829122,0.45520256,2738.0,2737.4,0.55440332]
[1645283829320,0.1826,2738.3,2737.4,0.55440332]
[1645283829521,4.4135,2738.6,2737.5,0.9134553]
[1645283829522,0.00314886,2738.0,2737.5,0.9134553]
[1645283829922,0.00314886,2738.0,2737.4,0.55440332]
[1645283830321,0.1826,2738.5,2737.4,0.55440332]
[1645283830525,0.65530011,2738.3,2737.4,0.55440332]
[1645283830720,0.00314886,2738.0,2737.4,0.55440332]
[1645283830924,0.00314886,2738.0,2737.1,1.63592303]
[1645283831269,4.03014886,2738.0,2737.1,0.03792303]
[1645283831665,4.027,2738.0,2737.1,0.03792303]
[1645283831862,0.4923127,2737.7,2737.1,0.03792303]
[1645283832063,0.527,2737.8,2737.1,0.03792303]
[1645283832562,3.68575179,2738.0,2737.1,0.03792303]
[1645283832764,3.6826,2738.0,2737.1,0.03792303]
[1645283832964,3.5,2738.0,2737.1,0.03792303]
[1645283833162,4.13213839,2738.0,2737.6,0.01548862]
[1645283833763,0.00238903,2738.0,2737.6,0.01548862]
[1645283833966,5.07604251,2738.2,2737.6,0.01548862]
[1645283834164,0.00315387,2738.0,2737.6,0.01548862]
[1645283835211,1.59375616,2738.2,2737.6,0.01548862]
[1645283835409,0.00323399,2738.0,2737.6,0.01548862]
[1645283836411,1.04904251,2738.2,2737.6,0.01548862]
[1645283836616,0.00323399,2738.0,2737.6,0.01548862]
[1645283837614,1.04904251,2738.2,2737.6,0.01548862]
[1645283837813,0.00323399,2738.0,2737.6,0.01548862]
[1645283838512,0.00323399,2738.0,2737.8,0.01505892]
[1645283838766,1.04904251,2738.2,2737.8,0.01505892]
[1645283838969,1.00218781,2738.2,2737.8,0.01505892]
[1645283839174,1.22897878,2738.6,2737.8,0.01505892]
[1645283839372,0.01257878,2738.6,2737.8,0.01505892]
[1645283839971,2.8416,2738.8,2738.4,0.53734465]
[1645283840166,0.1826,2739.0,2738.4,0.53734465]
[1645283840365,0.60339626,2739.1,2738.4,0.53734465]
[1645283840564,7.49,2739.2,2738.4,0.53734465]
[1645283840765,10.99,2739.2,2738.4,0.53734465]
[1645283841169,7.49,2739.2,2738.4,0.53734465]
[1645283841365,10.99,2739.2,2738.4,0.53734465]
[1645283842166,10.69,2739.2,2738.4,0.53734465]
[1645283842367,7.19,2739.2,2738.4,0.53734465]
[1645283842632,0.00339386,2738.9,2738.4,2.15772815]
[1645283843430,0.00339386,2738.9,2738.4,3.07074815]
[1645283843630,11.1724,2739.6,2738.4,3.07074815]
[1645283843832,11.1724,2739.6,2739.3,0.71123667]
[1645283844041,7.19,2739.6,2739.3,0.71123667]
[1645283844230,7.19,2739.6,2738.7,0.9129739]
[1645283844436,0.1824,2739.7,2738.7,0.9129739]
[1645283844632,0.00751301,2739.5,2738.6,1.8783]
[1645283844831,0.00751301,2739.6,2738.6,1.5783]
[1645283845031,0.00339375,2739.3,2738.6,1.5783]
[1645283845235,0.00339375,2739.3,2739.0,0.57955593]
[1645283846037,0.00751301,2739.6,2739.0,0.57955593]
[1645283846280,0.00339376,2739.3,2739.0,0.57955593]
[1645283847176,0.00751301,2739.6,2739.0,0.87955593]
[1645283847371,0.00751301,2739.6,2739.0,1.46925593]
[1645283847573,0.00339376,2739.3,2739.0,1.76925593]
[1645283848169,0.00339376,2739.3,2739.1,0.91281]
[1645283848369,0.00751301,2739.9,2739.1,0.91281]
[1645283848767,0.00262721,2739.3,2739.1,0.91281]
[1645283848968,0.00262721,2739.3,2739.1,1.8255169]
[1645283849168,0.00262721,2739.3,2739.2,0.3]
[1645283849569,0.00751301,2739.9,2739.2,0.3]
[1645283849775,0.0408884,2740.0,2739.2,0.3]
[1645283850012,0.00262721,2739.4,2739.2,0.3]
[1645283850213,2.721e-05,2739.4,2739.2,3.8]
[1645283850419,0.01050727,2739.8,2739.4,0.00077279]
[1645283850420,7.27e-06,2739.8,2739.4,0.00077279]
[1645283850612,7.27e-06,2739.8,2739.4,0.1759884]
[1645283850814,0.0408884,2740.0,2739.5,0.16872954]
[1645283851014,0.0408884,2740.0,2739.4,0.89617279]
[1645283851413,0.0408884,2740.0,2739.6,0.91264]
[1645283851811,0.0408884,2740.0,2739.7,0.69419079]
[1645283852612,0.0408884,2740.0,2739.7,6.01934999]
[1645283852815,0.0408884,2740.0,2739.8,0.91256]
[1645283854171,0.0408884,2740.0,2739.9,3.8]
[1645283854371,0.0408884,2740.0,2739.9,4.1]
[1645283854573,0.0408884,2740.0,2739.9,0.6]
[1645283854773,0.04428382,2740.0,2739.8,0.91256]
[1645283854978,0.04428382,2740.0,2739.9,0.3]
[1645283855176,0.04428382,2740.0,2739.9,3.8]
[1645283855574,0.0408884,2740.0,2739.9,3.5]
[1645283855775,0.0408884,2740.0,2739.9,15.26]
[1645283855978,0.05,2740.5,2740.1,0.91238]
[1645283856176,0.05,2740.5,2740.1,4.55958387]
[1645283856379,0.05,2740.5,2740.1,4.41238]
[1645283856577,0.05,2740.5,2739.9,5.32475]
[1645283856776,0.05,2740.5,2740.2,0.67640017]
[1645283859519,0.05339659,2740.5,2740.2,0.67640017]
[1645283860520,0.05,2740.5,2740.2,0.67640017]
[1645283860720,0.05339659,2740.5,2740.2,0.67640017]
[1645283861567,0.05,2740.5,2740.2,0.67640017]
[1645283861968,0.05339659,2740.5,2740.2,0.67640017]
[1645283862866,0.05,2740.5,2740.4,0.01456274]
[1645283863067,0.05339659,2740.5,2740.4,0.02994624]
[1645283863366,0.09375466,2740.5,2740.4,0.02994624]
[1645283863966,0.09035807,2740.5,2740.4,0.02994624]
[1645283871166,0.09035807,2740.5,2740.4,3.52994624]
[1645283871368,0.09035807,2740.5,2740.4,14.98994624]
[1645283871766,0.09035807,2740.5,2740.4,15.28994624]
[1645283871965,0.09035807,2740.5,2740.4,0.02994624]
[1645283875820,0.09035807,2740.5,2740.4,0.32994624]
[1645283876270,0.09035807,2740.5,2740.4,0.02994624]
[1645283877563,0.09035807,2740.5,2740.4,0.02885901]
[1645283878865,0.00314463,2740.6,2740.5,5.10511958]
[1645283879466,0.00314463,2740.6,2740.5,8.60511958]
[1645283879665,0.00751301,2741.3,2740.5,19.76511958]
[1645283879865,0.00751301,2741.3,2740.5,20.97727958]
[1645283880119,0.00316149,2740.7,2740.6,11.35795162]
[1645283880319,6.149e-05,2740.7,2740.6,14.85795162]
[1645283880521,0.00751301,2741.3,2740.8,11.16]
[1645283880729,5.0512,2742.1,2740.8,12.671971]
[1645283880730,0.00751301,2742.0,2740.8,12.671971]
[1645283880918,0.00751301,2742.0,2741.7,0.52647854]
[1645283881124,2.7532661,2742.4,2741.8,5.5]
[1645283881125,1.79862911,2742.4,2741.8,5.5]
[1645283881320,1.79862911,2742.4,2741.7,0.52647854]
[1645283882320,1.74862911,2742.4,2741.7,0.99998698]
[1645283882923,1.74862911,2742.4,2741.8,11.16]
[1645283883324,1.74862911,2742.4,2742.3,0.58687289]
[1645283883527,1.74781527,2742.4,2742.3,0.58687289]
[1645283884170,1.527e-05,2742.4,2742.3,0.58687289]
[1645283884572,1.527e-05,2742.4,2742.3,1.11387289]
[1645283884772,1.527e-05,2742.4,2742.3,2.02545289]
[1645283884973,1.527e-05,2742.4,2742.3,2.19846778]
[1645283885169,1.527e-05,2742.4,2742.3,13.35846778]
[1645283885474,1.87190049,2744.1,2742.5,8.0]
[1645283885673,0.1822,2743.8,2742.6,0.70221769]
[1645283885878,0.1322,2744.0,2743.0,0.91137]
[1645283886271,0.1822,2744.1,2743.0,0.91137]
[1645283886470,0.57206392,2743.7,2743.0,0.57677178]
[1645283887521,1.83088981,2744.1,2743.0,0.57677178]
[1645283887721,1.78088981,2744.1,2743.0,0.57677178]
[1645283888122,1.5755679,2744.3,2742.7,3.3586]
[1645283888123,0.91163,2743.7,2742.7,3.3586]
[1645283888427,0.91163,2743.7,2742.7,1.52540617]
[1645283889226,0.91169,2743.8,2742.1,0.05]
[1645283889227,5.0,2743.4,2742.1,0.05]
[1645283889428,5.0,2743.1,2742.0,1.537]
[1645283889725,5.527,2743.1,2742.7,0.00268722]
[1645283889926,0.1822,2743.0,2742.7,0.00268722]
[1645283890226,0.42152967,2742.9,2742.7,0.00268722]
[1645283890424,0.91203,2742.8,2742.0,1.537]
[1645283890823,0.91203,2742.8,2742.7,0.00268722]
[1645283891766,0.91203,2742.8,2742.0,1.537]
[1645283891966,0.91203,2742.8,2742.6,0.00268729]
[1645283892367,1.82408,2742.8,2742.6,0.00268729]
[1645283892571,8.12587526,2742.7,2742.6,0.00268729]
[1645283892873,8.12587526,2742.7,2741.1,3.5]
[1645283892874,0.91235,2742.1,2741.1,3.5]
[1645283893071,0.527,2742.0,2740.8,0.54193936]
[1645283893468,0.9124,2741.7,2740.8,0.54193936]
[1645283894071,0.69195823,2741.4,2740.8,0.54193936]
[1645283894270,0.9124,2741.7,2740.8,0.54193936]
[1645283894271,0.91241,2741.5,2740.8,0.54193936]
[1645283894474,1.82486,2741.5,2740.8,0.54193936]
[1645283894876,1.82486,2741.5,2740.6,1.5434]
[1645283895821,0.51305326,2741.1,2740.6,1.5434]
[1645283896018,0.51305326,2741.1,2740.5,0.10511958]
[1645283896621,0.51305326,2741.1,2740.7,0.00268248]
[1645283896820,0.91241,2741.5,2740.7,0.00268248]
[1645283897628,0.91241,2741.5,2740.5,0.10511958]
[1645283897824,0.97161217,2741.1,2740.5,0.10511958]
[1645283898127,0.97161217,2741.1,2741.0,0.00268218]
[1645283898791,0.97161217,2741.1,2741.0,0.02184524]
[1645283898980,0.01212914,2741.5,2741.2,0.68171738]
[1645283900381,0.01212914,2741.5,2741.2,0.68439932]
[1645283901388,0.01212914,2741.5,2741.2,0.68171738]
[1645283901591,0.01212914,2741.5,2741.2,0.68439932]
[1645283902521,0.01212914,2741.5,2741.2,0.68171738]
[1645283902721,0.01212914,2741.5,2741.2,0.68439932]
[1645283903521,0.01212914,2741.5,2741.4,0.01897584]
[1645283904533,0.01212914,2741.5,2740.5,0.10511958]
[1645283904828,0.527,2741.4,2740.5,0.10511958]
[1645283905227,0.29274764,2741.3,2740.5,0.10511958]
[1645283905426,0.91252,2741.2,2740.5,0.10511958]
[1645283905728,0.91253,2741.2,2740.5,0.10511958]
[1645283906127,0.527,2741.1,2740.5,0.10511958]
[1645283906573,0.91257,2741.0,2740.5,0.10511958]
[1645283906774,0.70643279,2741.0,2740.5,0.10511958]
[1645283906975,0.7094,2741.4,2740.5,0.10511958]
[1645283907579,1.0948,2741.4,2740.5,0.10511958]
[1645283907871,1.59969196,2741.4,2740.5,0.10511958]
[1645283908076,1.41729196,2741.4,2740.5,0.10511958]
[1645283908372,0.91252,2741.3,2740.5,0.10511958]
[1645283908774,0.91253,2741.2,2740.8,0.00267562]
[1645283909572,0.51701405,2741.4,2740.8,0.00267562]
[1645283909773,0.91244,2741.3,2740.7,0.02594734]
[1645283910019,4.91244,2741.3,2740.9,0.00267558]
[1645283911022,4.91244,2741.3,2740.5,0.08106692]
[1645283911320,4.91244,2741.3,2741.0,0.00267548]
[1645283911321,5.41244,2741.3,2741.0,0.00267548]
[1645283912123,0.5,2741.1,2740.5,0.08106692]
[1645283912322,0.5,2741.1,2741.0,0.00267543]
[1645283912323,1.41252,2741.1,2741.0,0.00267543]
[1645283912925,0.5,2741.1,2741.0,0.00267543]
[1645283913423,0.5,2741.1,2740.5,0.08106692]
[1645283913424,0.91257,2741.0,2740.5,0.08106692]
[1645283913625,0.91257,2741.0,2740.9,0.00267553]
[1645283914275,0.6824,2741.1,2740.9,0.00267553]
[1645283914469,0.5,2741.1,2740.5,0.08106692]
[1645283914670,1.814913,2741.2,2740.5,0.08106692]
[1645283914873,1.632513,2741.2,2740.8,0.00267562]
[1645283915270,2.545073,2741.2,2740.8,0.00267562]